[Event "Titled Tuesday Blitz August 1 Early 2023"]
[White "Vaglio Munoz, Jaime"]
[Black "Der_Balak_3Halak"]
[WhiteFideId "6500145"]
[WhiteElo "2251"]
[BlackElo "2400"]
[Result "0-1"]
[Round "3"]
[TimeControl "180+1"]
[Date "2023.08.01"]
[WhiteClock "0:01:34"]
[BlackClock "0:00:11"]
[Board "226"]

1. Nf3 {[%clk 0:03:00]}  Nf6 {[%clk 0:02:59]} 2. c4 {[%clk 0:03:00]}  c5 {[%clk 0:02:57]} 3. b3 {[%clk 0:03:00]}  g6 {[%clk 0:02:57]} 4. Bb2 {[%clk 0:03:00]}  Bg7 {[%clk 0:02:58]} 5. g3 {[%clk 0:03:00]}  b6 {[%clk 0:02:59]} 6. Bg2 {[%clk 0:03:00]}  Bb7 {[%clk 0:02:59]} 7. O-O {[%clk 0:02:59]}  O-O {[%clk 0:03:00]} 8. d3 {[%clk 0:02:59]}  d6 {[%clk 0:03:00]} 9. e4 {[%clk 0:02:59]}  e5 {[%clk 0:03:00]} 10. Nh4 {[%clk 0:02:57]}  Nc6 {[%clk 0:02:56]} 11. f4 {[%clk 0:02:57]}  Nd4 {[%clk 0:02:55]} 12. f5 {[%clk 0:02:54]}  g5 {[%clk 0:02:46]} 13. Nf3 {[%clk 0:02:53]}  Ng4 {[%clk 0:02:47]} 14. Bc1 {[%clk 0:02:48]}  Nxf3+ {[%clk 0:02:36]} 15. Bxf3 {[%clk 0:02:47]}  Nh6 {[%clk 0:02:35]} 16. Nc3 {[%clk 0:02:42]}  f6 {[%clk 0:02:34]} 17. a3 {[%clk 0:02:37]}  Kh8 {[%clk 0:02:30]} 18. Kg2 {[%clk 0:02:36]}  Ng8 {[%clk 0:02:30]} 19. h4 {[%clk 0:02:36]}  h6 {[%clk 0:02:24]} 20. Rh1 {[%clk 0:02:34]}  Qe7 {[%clk 0:01:51]} 21. Ra2 {[%clk 0:02:32]}  Rae8 {[%clk 0:01:44]} 22. Kg1 {[%clk 0:02:30]}  Rf7 {[%clk 0:01:32]} 23. Bh5 {[%clk 0:02:29]}  Rff8 {[%clk 0:01:31]} 24. Bxe8 {[%clk 0:02:27]}  Rxe8 {[%clk 0:01:31]} 25. Rah2 {[%clk 0:02:26]}  Bf8 {[%clk 0:01:22]} 26. Qh5 {[%clk 0:02:24]}  gxh4 {[%clk 0:01:01]} 27. Rxh4 {[%clk 0:02:21]}  Bc6 {[%clk 0:00:59]} 28. Qg4 {[%clk 0:02:11]}  Qg7 {[%clk 0:00:57]} 29. Qh3 {[%clk 0:01:58]}  Re7 {[%clk 0:00:48]} 30. Rg4 {[%clk 0:01:53]}  Qh7 {[%clk 0:00:43]} 31. Rg6 {[%clk 0:01:53]}  Be8 {[%clk 0:00:43]} 32. Nd5 {[%clk 0:01:44]}  Bxg6 {[%clk 0:00:38]} 33. fxg6 {[%clk 0:01:42]}  Qxg6 {[%clk 0:00:37]} 34. Nxe7 {[%clk 0:01:42]}  Nxe7 {[%clk 0:00:19]} 35. Bxh6 {[%clk 0:01:41]}  Kg8 {[%clk 0:00:19]} 36. Qe6+ {[%clk 0:01:38]}  Qf7 {[%clk 0:00:18]} 37. Bxf8 {[%clk 0:01:37]}  Qxe6 {[%clk 0:00:17]} 38. Bxe7 {[%clk 0:01:35]}  Qxe7 {[%clk 0:00:18]} 39. Kg2 {[%clk 0:01:33]}  Qg7 {[%clk 0:00:17]} 40. Rf1 {[%clk 0:01:33]}  Qg5 {[%clk 0:00:17]} 41. Rf5 {[%clk 0:01:31]}  Qh6 {[%clk 0:00:16]} 42. g4 {[%clk 0:01:31]}  Kf7 {[%clk 0:00:17]} 43. g5 {[%clk 0:01:31]}  Qxg5+ {[%clk 0:00:14]} 44. Rxg5 {[%clk 0:01:30]}  fxg5 {[%clk 0:00:15]} 45. Kg3 {[%clk 0:01:30]}  Kf6 {[%clk 0:00:12]} 46. Kf3 {[%clk 0:01:29]}  a6 {[%clk 0:00:11]} 47. a4 {[%clk 0:01:26]}  Kg6 {[%clk 0:00:11]} 48. Kg4 {[%clk 0:01:26]}  a5 {[%clk 0:00:11]} 49. Kg3 {[%clk 0:01:17]}  Kh5 {[%clk 0:00:12]} 50. Kh3 {[%clk 0:01:16]}  g4+ {[%clk 0:00:12]} 51. Kg3 {[%clk 0:01:17]}  Kg5 {[%clk 0:00:13]} 52. Kg2 {[%clk 0:01:16]}  Kf4 {[%clk 0:00:14]} 53. Kf2 {[%clk 0:01:17]}  g3+ {[%clk 0:00:15]} 54. Kg2 {[%clk 0:01:16]}  Ke3 {[%clk 0:00:15]} 55. Kxg3 {[%clk 0:01:16]}  Kxd3 {[%clk 0:00:16]} 56. Kg4 {[%clk 0:01:17]}  Kxe4 {[%clk 0:00:16]} 57. Kg3 {[%clk 0:01:17]}  Kd3 {[%clk 0:00:16]} 58. Kf2 {[%clk 0:01:18]}  e4 {[%clk 0:00:15]} 59. Ke1 {[%clk 0:01:18]}  Ke3 {[%clk 0:00:16]} 60. Kd1 {[%clk 0:01:18]}  Kf2 {[%clk 0:00:17]} 61. Kc2 {[%clk 0:01:18]}  e3 {[%clk 0:00:17]} 62. b4 {[%clk 0:01:19]}  e2 {[%clk 0:00:18]} 63. bxc5 {[%clk 0:01:19]}  dxc5 {[%clk 0:00:18]} 64. Kd3 {[%clk 0:01:19]}  e1=Q {[%clk 0:00:19]} 65. Kc2 {[%clk 0:01:19]}  Qb4 {[%clk 0:00:20]} 66. Kd3 {[%clk 0:01:20]}  Qxa4 {[%clk 0:00:21]} 67. Kc3 {[%clk 0:01:20]}  Qb4+ {[%clk 0:00:21]} 68. Kc2 {[%clk 0:01:20]}  a4 {[%clk 0:00:21]} 69. Kd3 {[%clk 0:01:20]}  a3 {[%clk 0:00:22]} 70. Ke4 {[%clk 0:01:21]}  a2 {[%clk 0:00:22]} 71. Kd5 {[%clk 0:01:22]}  a1=Q {[%clk 0:00:23]} 72. Kc6 {[%clk 0:01:22]}  Qd4 {[%clk 0:00:22]} 73. Kc7 {[%clk 0:01:22]}  b5 {[%clk 0:00:21]} 74. Kc6 {[%clk 0:01:22]}  bxc4 {[%clk 0:00:21]} 75. Kc7 {[%clk 0:01:22]}  c3 {[%clk 0:00:21]} 76. Kc8 {[%clk 0:01:21]}  c2 {[%clk 0:00:22]} 77. Kc7 {[%clk 0:01:22]}  c1=Q {[%clk 0:00:23]} 78. Kc6 {[%clk 0:01:23]}  c4 {[%clk 0:00:23]} 79. Kc7 {[%clk 0:01:23]}  c3 {[%clk 0:00:24]} 80. Kc8 {[%clk 0:01:24]}  c2 {[%clk 0:00:25]} 81. Kc7 {[%clk 0:01:25]}  Qbb1 {[%clk 0:00:25]} 82. Kc8 {[%clk 0:01:26]}  Qdd1 {[%clk 0:00:25]} 83. Kc7 {[%clk 0:01:27]}  Ke1 {[%clk 0:00:25]} 84. Kc8 {[%clk 0:01:28]}  Qcb2 {[%clk 0:00:25]} 85. Kc7 {[%clk 0:01:29]}  Q2a1 {[%clk 0:00:25]} 86. Kc6 {[%clk 0:01:30]}  Qa4+ {[%clk 0:00:23]} 87. Kc5 {[%clk 0:01:30]}  Qaa2 {[%clk 0:00:15]} 88. Kc6 {[%clk 0:01:30]}  Qa3 {[%clk 0:00:16]} 89. Kc7 {[%clk 0:01:31]}  Qb5 {[%clk 0:00:11]} 90. Kc8 {[%clk 0:01:32]}  Qaa1 {[%clk 0:00:10]} 91. Kc7 {[%clk 0:01:33]}  Qbb1 {[%clk 0:00:11]} 92. Kc8 {[%clk 0:01:34]}  c1=Q# {[%clk 0:00:11]} 0-1


[Site "https://www.chess.com"]

[Event "Titled Tuesday Blitz August 1 Early 2023"]
[White "Joshi, Pankaj"]
[Black "Pinto, Daniel"]
[WhiteFideId "5006210"]
[BlackFideId "3303144"]
[WhiteElo "2249"]
[BlackElo "2398"]
[Result "1-0"]
[Round "3"]
[TimeControl "180+1"]
[Date "2023.08.01"]
[WhiteClock "0:01:43"]
[BlackClock "0:01:35"]
[Board "227"]

1. e4 {[%clk 0:03:00]}  c6 {[%clk 0:02:44]} 2. d4 {[%clk 0:03:00]}  d5 {[%clk 0:02:41]} 3. exd5 {[%clk 0:03:01]}  cxd5 {[%clk 0:02:41]} 4. Bd3 {[%clk 0:03:02]}  Nc6 {[%clk 0:02:40]} 5. c3 {[%clk 0:03:02]}  Qc7 {[%clk 0:02:41]} 6. h3 {[%clk 0:03:01]}  e5 {[%clk 0:02:40]} 7. dxe5 {[%clk 0:02:49]}  Nxe5 {[%clk 0:02:40]} 8. Qe2 {[%clk 0:02:48]}  Be7 {[%clk 0:02:39]} 9. Bc2 {[%clk 0:02:36]}  Nc6 {[%clk 0:02:33]} 10. Bg5 {[%clk 0:02:25]}  Be6 {[%clk 0:02:27]} 11. Nf3 {[%clk 0:02:22]}  h6 {[%clk 0:02:24]} 12. Be3 {[%clk 0:02:16]}  Nf6 {[%clk 0:02:23]} 13. O-O {[%clk 0:02:15]}  O-O {[%clk 0:02:22]} 14. Nd4 {[%clk 0:02:04]}  Nxd4 {[%clk 0:02:20]} 15. Bxd4 {[%clk 0:02:05]}  Rfe8 {[%clk 0:02:10]} 16. Nd2 {[%clk 0:02:03]}  Nh7 {[%clk 0:01:46]} 17. Nf3 {[%clk 0:01:54]}  g6 {[%clk 0:01:35]} 18. Bxg6 {[%clk 0:01:43]} 1-0


[Site "https://www.chess.com"]

[Event "Titled Tuesday Blitz August 1 Early 2023"]
[White "Mika, Tomasz"]
[Black "Daniel_Salinas"]
[WhiteFideId "1132970"]
[WhiteElo "2392"]
[BlackElo "2238"]
[Result "0-1"]
[Round "3"]
[TimeControl "180+1"]
[Date "2023.08.01"]
[WhiteClock "0:00:30"]
[BlackClock "0:01:40"]
[Board "232"]

1. e4 {[%clk 0:01:15]}  c6 {[%clk 0:02:58]} 2. d4 {[%clk 0:01:14]}  d5 {[%clk 0:02:59]} 3. e5 {[%clk 0:01:14]}  c5 {[%clk 0:03:00]} 4. Nf3 {[%clk 0:01:13]}  cxd4 {[%clk 0:02:55]} 5. Nxd4 {[%clk 0:01:11]}  Nc6 {[%clk 0:02:56]} 6. Bb5 {[%clk 0:01:09]}  Bd7 {[%clk 0:02:22]} 7. e6 {[%clk 0:01:08]}  fxe6 {[%clk 0:02:23]} 8. O-O {[%clk 0:01:05]}  Nf6 {[%clk 0:02:16]} 9. Re1 {[%clk 0:01:05]}  Nxd4 {[%clk 0:02:05]} 10. Bxd7+ {[%clk 0:01:06]}  Qxd7 {[%clk 0:02:06]} 11. Qxd4 {[%clk 0:01:06]}  g6 {[%clk 0:02:06]} 12. Qe5 {[%clk 0:00:55]}  Kf7 {[%clk 0:01:56]} 13. Nc3 {[%clk 0:00:55]}  Bg7 {[%clk 0:01:55]} 14. Bg5 {[%clk 0:00:54]}  h6 {[%clk 0:01:43]} 15. Bh4 {[%clk 0:00:53]}  g5 {[%clk 0:01:42]} 16. Bg3 {[%clk 0:00:50]}  Ne4 {[%clk 0:01:40]} 17. Qc7 {[%clk 0:00:45]}  Qxc7 {[%clk 0:01:40]} 18. Bxc7 {[%clk 0:00:30]}  Nxc3 {[%clk 0:01:40]} 0-1


[Site "https://www.chess.com"]

[Event "Titled Tuesday Blitz August 1 Early 2023"]
[White "Namitbir Singh Walia"]
[Black "alfianasybullina"]
[WhiteFideId "35071068"]
[WhiteElo "2388"]
[BlackElo "2224"]
[Result "1-0"]
[Round "3"]
[TimeControl "180+1"]
[Date "2023.08.01"]
[WhiteClock "0:00:32"]
[BlackClock "0:00:06"]
[Board "235"]

1. e4 {[%clk 0:03:00]}  e6 {[%clk 0:02:59]} 2. d4 {[%clk 0:02:59]}  d5 {[%clk 0:03:00]} 3. Nd2 {[%clk 0:02:59]}  c5 {[%clk 0:02:59]} 4. exd5 {[%clk 0:02:59]}  Qxd5 {[%clk 0:03:00]} 5. dxc5 {[%clk 0:02:58]}  Bxc5 {[%clk 0:02:59]} 6. Ngf3 {[%clk 0:02:57]}  Nf6 {[%clk 0:02:59]} 7. Bd3 {[%clk 0:02:57]}  O-O {[%clk 0:02:56]} 8. Qe2 {[%clk 0:02:57]}  Nc6 {[%clk 0:02:54]} 9. Ne4 {[%clk 0:02:57]}  Be7 {[%clk 0:02:36]} 10. Bg5 {[%clk 0:02:54]}  Nd4 {[%clk 0:02:32]} 11. Nxd4 {[%clk 0:02:48]}  Qxd4 {[%clk 0:02:33]} 12. O-O-O {[%clk 0:02:39]}  Qe5 {[%clk 0:01:51]} 13. f4 {[%clk 0:02:32]}  Qa5 {[%clk 0:01:50]} 14. Nxf6+ {[%clk 0:02:28]}  Bxf6 {[%clk 0:01:48]} 15. Bxf6 {[%clk 0:02:21]}  gxf6 {[%clk 0:01:49]} 16. Kb1 {[%clk 0:01:59]}  Kh8 {[%clk 0:01:35]} 17. Rhf1 {[%clk 0:01:57]}  f5 {[%clk 0:01:33]} 18. Rf3 {[%clk 0:01:56]}  Rg8 {[%clk 0:01:31]} 19. Rh3 {[%clk 0:01:56]}  Bd7 {[%clk 0:01:26]} 20. g4 {[%clk 0:00:51]}  Rxg4 {[%clk 0:00:59]} 21. Rxh7+ {[%clk 0:00:50]}  Kg8 {[%clk 0:00:35]} 22. Rh5 {[%clk 0:00:50]}  Qb4 {[%clk 0:00:18]} 23. Qe5 {[%clk 0:00:41]}  Rg7 {[%clk 0:00:15]} 24. Qf6 {[%clk 0:00:35]}  Bc6 {[%clk 0:00:15]} 25. Qh6 {[%clk 0:00:33]}  Kf8 {[%clk 0:00:13]} 26. Rg5 {[%clk 0:00:32]}  Qd4 {[%clk 0:00:11]} 27. Qh8+ {[%clk 0:00:32]}  Ke7 {[%clk 0:00:06]} 28. Qxg7 {[%clk 0:00:32]} 1-0


[Site "https://www.chess.com"]

[Event "Titled Tuesday Blitz August 1 Early 2023"]
[White "Liu, Leonardo"]
[Black "Gombocz, Ferenc Jr."]
[WhiteFideId "30965780"]
[BlackFideId "775029"]
[WhiteElo "2216"]
[BlackElo "2387"]
[Result "0-1"]
[Round "3"]
[TimeControl "180+1"]
[Date "2023.08.01"]
[WhiteClock "0:02:12"]
[BlackClock "0:01:51"]
[Board "236"]

1. e4 {[%clk 0:03:00]}  e5 {[%clk 0:02:59]} 2. Nf3 {[%clk 0:03:00]}  Nc6 {[%clk 0:02:58]} 3. Bc4 {[%clk 0:03:00]}  Nf6 {[%clk 0:02:57]} 4. d3 {[%clk 0:03:00]}  Be7 {[%clk 0:02:52]} 5. c3 {[%clk 0:03:01]}  O-O {[%clk 0:02:47]} 6. Bb3 {[%clk 0:03:01]}  d5 {[%clk 0:02:47]} 7. Qe2 {[%clk 0:03:00]}  dxe4 {[%clk 0:02:44]} 8. dxe4 {[%clk 0:03:01]}  Na5 {[%clk 0:02:43]} 9. Bc2 {[%clk 0:03:01]}  Nc6 {[%clk 0:02:40]} 10. Nbd2 {[%clk 0:03:01]}  Be6 {[%clk 0:02:39]} 11. O-O {[%clk 0:03:00]}  h6 {[%clk 0:02:37]} 12. h3 {[%clk 0:03:00]}  a5 {[%clk 0:02:33]} 13. Rd1 {[%clk 0:02:59]}  Qc8 {[%clk 0:02:31]} 14. Nf1 {[%clk 0:02:59]}  Bc5 {[%clk 0:02:27]} 15. Ng3 {[%clk 0:02:58]}  Rd8 {[%clk 0:02:24]} 16. Rxd8+ {[%clk 0:02:57]}  Qxd8 {[%clk 0:02:25]} 17. Nh4 {[%clk 0:02:56]}  Qf8 {[%clk 0:02:21]} 18. Qf3 {[%clk 0:02:54]}  Be7 {[%clk 0:02:10]} 19. Ngf5 {[%clk 0:02:50]}  Rd8 {[%clk 0:02:04]} 20. Nxe7+ {[%clk 0:02:32]}  Qxe7 {[%clk 0:02:03]} 21. Qg3 {[%clk 0:02:30]}  Nh5 {[%clk 0:01:59]} 22. Qf3 {[%clk 0:02:12]}  Qxh4 {[%clk 0:01:51]} 0-1


[Site "https://www.chess.com"]

[Event "Titled Tuesday Blitz August 1 Early 2023"]
[White "Tagliata"]
[Black "jimmy-schlumpf"]
[WhiteElo "2205"]
[BlackElo "2384"]
[Result "0-1"]
[Round "3"]
[TimeControl "180+1"]
[Date "2023.08.01"]
[WhiteClock "0:01:12"]
[BlackClock "0:01:14"]
[Board "237"]

1. e4 {[%clk 0:03:00]}  Nf6 {[%clk 0:02:59]} 2. e5 {[%clk 0:02:54]}  Nd5 {[%clk 0:02:58]} 3. Nf3 {[%clk 0:02:55]}  d6 {[%clk 0:02:58]} 4. exd6 {[%clk 0:02:53]}  cxd6 {[%clk 0:02:58]} 5. d4 {[%clk 0:02:53]}  g6 {[%clk 0:02:57]} 6. Bd3 {[%clk 0:02:53]}  Bg7 {[%clk 0:02:58]} 7. h3 {[%clk 0:02:54]}  O-O {[%clk 0:02:58]} 8. O-O {[%clk 0:02:55]}  Nc6 {[%clk 0:02:58]} 9. c3 {[%clk 0:02:54]}  h6 {[%clk 0:02:56]} 10. Nbd2 {[%clk 0:02:53]}  e5 {[%clk 0:02:56]} 11. dxe5 {[%clk 0:02:52]}  dxe5 {[%clk 0:02:55]} 12. Nc4 {[%clk 0:02:50]}  Re8 {[%clk 0:02:53]} 13. Re1 {[%clk 0:02:44]}  f5 {[%clk 0:02:52]} 14. Ne3 {[%clk 0:02:26]}  Be6 {[%clk 0:02:40]} 15. Bc4 {[%clk 0:02:20]}  Nxe3 {[%clk 0:02:30]} 16. Bxe6+ {[%clk 0:02:20]}  Rxe6 {[%clk 0:02:28]} 17. Bxe3 {[%clk 0:02:21]}  Qc7 {[%clk 0:01:55]} 18. Qb3 {[%clk 0:02:19]}  Qf7 {[%clk 0:01:50]} 19. Rad1 {[%clk 0:02:17]}  Rae8 {[%clk 0:01:38]} 20. Qd5 {[%clk 0:02:05]}  R6e7 {[%clk 0:01:38]} 21. Qxf7+ {[%clk 0:01:58]}  Kxf7 {[%clk 0:01:38]} 22. Bc5 {[%clk 0:01:58]}  Rc7 {[%clk 0:01:34]} 23. Bd6 {[%clk 0:01:57]}  Rd7 {[%clk 0:01:34]} 24. Bc5 {[%clk 0:01:54]}  Red8 {[%clk 0:01:33]} 25. Rxd7+ {[%clk 0:01:53]}  Rxd7 {[%clk 0:01:33]} 26. Kf1 {[%clk 0:01:50]}  e4 {[%clk 0:01:32]} 27. Nd4 {[%clk 0:01:44]}  Nxd4 {[%clk 0:01:31]} 28. Bxd4 {[%clk 0:01:45]}  Bxd4 {[%clk 0:01:30]} 29. cxd4 {[%clk 0:01:45]}  Rxd4 {[%clk 0:01:30]} 30. Ke2 {[%clk 0:01:46]}  Ke6 {[%clk 0:01:29]} 31. Rc1 {[%clk 0:01:46]}  Kd7 {[%clk 0:01:26]} 32. Rc3 {[%clk 0:01:43]}  b5 {[%clk 0:01:24]} 33. Rc5 {[%clk 0:01:42]}  a6 {[%clk 0:01:23]} 34. g4 {[%clk 0:01:40]}  Rc4 {[%clk 0:01:22]} 35. Rd5+ {[%clk 0:01:29]}  Ke6 {[%clk 0:01:21]} 36. Rd2 {[%clk 0:01:28]}  f4 {[%clk 0:01:20]} 37. b3 {[%clk 0:01:22]}  Rc1 {[%clk 0:01:17]} 38. Rd4 {[%clk 0:01:21]}  Ke5 {[%clk 0:01:16]} 39. Rd2 {[%clk 0:01:12]}  f3+ {[%clk 0:01:14]} 0-1


[Site "https://www.chess.com"]

[Event "Titled Tuesday Blitz August 1 Early 2023"]
[White "Kuchava, Ana"]
[Black "Eggleston, Thomas A"]
[WhiteFideId "13605348"]
[BlackFideId "412139"]
[WhiteElo "2200"]
[BlackElo "2378"]
[Result "0-1"]
[Round "3"]
[TimeControl "180+1"]
[Date "2023.08.01"]
[WhiteClock "0:00:00"]
[BlackClock "0:00:16"]
[Board "238"]

1. d4 {[%clk 0:03:00]}  e6 {[%clk 0:02:59]} 2. Nf3 {[%clk 0:03:00]}  f5 {[%clk 0:02:59]} 3. Nc3 {[%clk 0:02:59]}  Nf6 {[%clk 0:02:59]} 4. Bg5 {[%clk 0:02:58]}  Bb4 {[%clk 0:02:56]} 5. Qd3 {[%clk 0:02:54]}  Bxc3+ {[%clk 0:02:27]} 6. Qxc3 {[%clk 0:02:51]}  O-O {[%clk 0:02:25]} 7. O-O-O {[%clk 0:02:40]}  a5 {[%clk 0:02:19]} 8. h3 {[%clk 0:02:30]}  b5 {[%clk 0:02:19]} 9. g4 {[%clk 0:02:28]}  b4 {[%clk 0:02:18]} 10. Qd2 {[%clk 0:02:25]}  f4 {[%clk 0:02:01]} 11. Qxf4 {[%clk 0:02:09]}  a4 {[%clk 0:01:48]} 12. e4 {[%clk 0:02:05]}  Qe8 {[%clk 0:01:44]} 13. Bxf6 {[%clk 0:02:04]}  Rxf6 {[%clk 0:01:44]} 14. Qe3 {[%clk 0:02:03]}  b3 {[%clk 0:01:42]} 15. cxb3 {[%clk 0:02:00]}  axb3 {[%clk 0:01:42]} 16. Qxb3 {[%clk 0:02:00]}  Nc6 {[%clk 0:01:38]} 17. g5 {[%clk 0:01:56]}  Rf8 {[%clk 0:01:33]} 18. Be2 {[%clk 0:01:46]}  Ba6 {[%clk 0:01:20]} 19. Bxa6 {[%clk 0:01:42]}  Rxa6 {[%clk 0:01:19]} 20. d5 {[%clk 0:01:28]}  Rb6 {[%clk 0:01:17]} 21. Qe3 {[%clk 0:01:20]}  Nb4 {[%clk 0:01:11]} 22. a3 {[%clk 0:01:17]}  Qa8 {[%clk 0:00:51]} 23. axb4 {[%clk 0:00:42]}  Qa1+ {[%clk 0:00:50]} 24. Kc2 {[%clk 0:00:39]}  Qa4+ {[%clk 0:00:47]} 25. Kd2 {[%clk 0:00:29]}  Rxb4 {[%clk 0:00:46]} 26. Rhe1 {[%clk 0:00:11]}  Rb3 {[%clk 0:00:45]} 27. Qd4 {[%clk 0:00:08]}  Qa5+ {[%clk 0:00:42]} 28. Ke2 {[%clk 0:00:07]}  Rbxf3 {[%clk 0:00:42]} 29. Rf1 {[%clk 0:00:06]}  Qb5+ {[%clk 0:00:38]} 30. Ke1 {[%clk 0:00:05]}  c5 {[%clk 0:00:29]} 31. dxc6 {[%clk 0:00:05]}  dxc6 {[%clk 0:00:21]} 32. Qd6 {[%clk 0:00:02]}  Qxb2 {[%clk 0:00:16]} 33. Qxe6+ {[%clk 0:00:00]}  Kh8 {[%clk 0:00:16]} 0-1


[Site "https://www.chess.com"]

[Event "Titled Tuesday Blitz August 1 Early 2023"]
[White "Luxama, Jacques Muller"]
[Black "Luong Phuong Hanh"]
[WhiteFideId "11900113"]
[BlackFideId "12401013"]
[WhiteElo "2180"]
[BlackElo "2371"]
[Result "1-0"]
[Round "3"]
[TimeControl "180+1"]
[Date "2023.08.01"]
[WhiteClock "0:00:32"]
[BlackClock "0:00:12"]
[Board "241"]

1. e4 {[%clk 0:02:59]}  c5 {[%clk 0:02:58]} 2. Nf3 {[%clk 0:02:59]}  e6 {[%clk 0:02:52]} 3. d4 {[%clk 0:02:59]}  cxd4 {[%clk 0:02:51]} 4. Nxd4 {[%clk 0:02:59]}  a6 {[%clk 0:02:51]} 5. Nc3 {[%clk 0:02:58]}  Qc7 {[%clk 0:02:50]} 6. a3 {[%clk 0:02:57]}  b6 {[%clk 0:02:34]} 7. Bd3 {[%clk 0:02:56]}  Bb7 {[%clk 0:02:34]} 8. O-O {[%clk 0:02:56]}  Bc5 {[%clk 0:02:34]} 9. Nb3 {[%clk 0:02:55]}  Be7 {[%clk 0:02:35]} 10. Be3 {[%clk 0:02:47]}  d6 {[%clk 0:02:35]} 11. f4 {[%clk 0:02:47]}  Nd7 {[%clk 0:02:35]} 12. Qf3 {[%clk 0:02:41]}  Ngf6 {[%clk 0:02:34]} 13. h3 {[%clk 0:02:39]}  O-O {[%clk 0:02:33]} 14. Rae1 {[%clk 0:02:32]}  Rac8 {[%clk 0:02:20]} 15. Qg3 {[%clk 0:02:30]}  Kh8 {[%clk 0:02:10]} 16. Bd4 {[%clk 0:02:25]}  Nc5 {[%clk 0:02:09]} 17. e5 {[%clk 0:02:21]}  dxe5 {[%clk 0:02:04]} 18. Bxe5 {[%clk 0:02:14]}  Qc6 {[%clk 0:02:04]} 19. Nxc5 {[%clk 0:02:12]}  Qxc5+ {[%clk 0:02:00]} 20. Kh2 {[%clk 0:02:08]}  b5 {[%clk 0:01:56]} 21. Ne4 {[%clk 0:02:03]}  Bxe4 {[%clk 0:01:50]} 22. Bxe4 {[%clk 0:02:02]}  Rg8 {[%clk 0:01:51]} 23. Bd3 {[%clk 0:01:55]}  Nd7 {[%clk 0:01:42]} 24. Bc3 {[%clk 0:01:46]}  Bf6 {[%clk 0:01:41]} 25. Bxf6 {[%clk 0:01:37]}  Nxf6 {[%clk 0:01:40]} 26. f5 {[%clk 0:01:35]}  exf5 {[%clk 0:01:33]} 27. Rxf5 {[%clk 0:01:34]}  Qc7 {[%clk 0:01:34]} 28. Ree5 {[%clk 0:01:30]}  Rce8 {[%clk 0:01:25]} 29. Kh1 {[%clk 0:01:13]}  Rxe5 {[%clk 0:01:24]} 30. Rxe5 {[%clk 0:01:13]}  h6 {[%clk 0:01:15]} 31. Qe3 {[%clk 0:01:11]}  Rd8 {[%clk 0:01:09]} 32. Re7 {[%clk 0:01:10]}  Qb8 {[%clk 0:00:53]} 33. Rxf7 {[%clk 0:01:09]}  Rf8 {[%clk 0:00:52]} 34. Re7 {[%clk 0:01:04]}  Qd6 {[%clk 0:00:48]} 35. Re6 {[%clk 0:01:02]}  Qd5 {[%clk 0:00:47]} 36. Kh2 {[%clk 0:00:54]}  Qh5 {[%clk 0:00:45]} 37. Qg3 {[%clk 0:00:47]}  Qf7 {[%clk 0:00:42]} 38. Rc6 {[%clk 0:00:43]}  Qd7 {[%clk 0:00:35]} 39. Rc7 {[%clk 0:00:42]}  Qxc7 {[%clk 0:00:23]} 40. Qxc7 {[%clk 0:00:41]}  Re8 {[%clk 0:00:20]} 41. Qc6 {[%clk 0:00:38]}  Re7 {[%clk 0:00:20]} 42. Qxa6 {[%clk 0:00:37]}  Re8 {[%clk 0:00:17]} 43. Qxb5 {[%clk 0:00:37]}  Rd8 {[%clk 0:00:17]} 44. Qf5 {[%clk 0:00:36]}  Kg8 {[%clk 0:00:17]} 45. a4 {[%clk 0:00:34]}  Rb8 {[%clk 0:00:17]} 46. b3 {[%clk 0:00:34]}  Rd8 {[%clk 0:00:16]} 47. a5 {[%clk 0:00:34]}  Kf7 {[%clk 0:00:16]} 48. a6 {[%clk 0:00:34]}  Ra8 {[%clk 0:00:16]} 49. Qb5 {[%clk 0:00:32]}  Ra7 {[%clk 0:00:16]} 50. Qb6 {[%clk 0:00:32]}  Re7 {[%clk 0:00:16]} 51. a7 {[%clk 0:00:32]}  Nd5 {[%clk 0:00:12]} 52. Bc4 {[%clk 0:00:32]} 1-0


[Site "https://www.chess.com"]

[Event "Titled Tuesday Blitz August 1 Early 2023"]
[White "Foerster-Yialamas, Lucas"]
[Black "Hon, Eric"]
[WhiteFideId "30901774"]
[BlackFideId "2097117"]
[WhiteElo "2370"]
[BlackElo "2171"]
[Result "1-0"]
[Round "3"]
[TimeControl "180+1"]
[Date "2023.08.01"]
[WhiteClock "0:00:11"]
[BlackClock "0:00:08"]
[Board "242"]

1. e4 {[%clk 0:02:57]}  c5 {[%clk 0:03:00]} 2. Nf3 {[%clk 0:02:56]}  d6 {[%clk 0:03:00]} 3. d4 {[%clk 0:02:56]}  cxd4 {[%clk 0:03:00]} 4. Nxd4 {[%clk 0:02:55]}  Nf6 {[%clk 0:03:01]} 5. f3 {[%clk 0:02:56]}  Nc6 {[%clk 0:03:01]} 6. c4 {[%clk 0:02:55]}  e5 {[%clk 0:03:01]} 7. Nb5 {[%clk 0:02:40]}  a6 {[%clk 0:03:00]} 8. N5c3 {[%clk 0:02:33]}  Be6 {[%clk 0:02:58]} 9. Bg5 {[%clk 0:02:30]}  Nd4 {[%clk 0:02:58]} 10. Ne2 {[%clk 0:02:20]}  Nc6 {[%clk 0:01:50]} 11. Ng3 {[%clk 0:02:13]}  h6 {[%clk 0:01:44]} 12. Be3 {[%clk 0:02:08]}  Be7 {[%clk 0:01:44]} 13. Nc3 {[%clk 0:02:06]}  O-O {[%clk 0:01:43]} 14. Qd2 {[%clk 0:02:03]}  Nd4 {[%clk 0:01:31]} 15. Bxd4 {[%clk 0:02:00]}  exd4 {[%clk 0:01:31]} 16. Qxd4 {[%clk 0:02:01]}  Rc8 {[%clk 0:01:29]} 17. Nf5 {[%clk 0:01:56]}  Bxf5 {[%clk 0:01:28]} 18. exf5 {[%clk 0:01:57]}  d5 {[%clk 0:01:23]} 19. cxd5 {[%clk 0:01:56]}  Bc5 {[%clk 0:01:20]} 20. Qd3 {[%clk 0:01:53]}  Re8+ {[%clk 0:01:17]} 21. Be2 {[%clk 0:01:50]}  Bb4 {[%clk 0:01:16]} 22. d6 {[%clk 0:01:40]}  Qxd6 {[%clk 0:00:46]} 23. Qxd6 {[%clk 0:01:37]}  Bxd6 {[%clk 0:00:46]} 24. O-O-O {[%clk 0:01:29]}  Bf4+ {[%clk 0:00:44]} 25. Kb1 {[%clk 0:01:24]}  Rxc3 {[%clk 0:00:43]} 26. bxc3 {[%clk 0:01:25]}  Rxe2 {[%clk 0:00:43]} 27. g3 {[%clk 0:01:22]}  Bc7 {[%clk 0:00:41]} 28. Rde1 {[%clk 0:01:16]}  Rf2 {[%clk 0:00:37]} 29. Ref1 {[%clk 0:01:16]}  Rg2 {[%clk 0:00:33]} 30. Rfg1 {[%clk 0:01:12]}  Rd2 {[%clk 0:00:32]} 31. Rd1 {[%clk 0:01:11]}  Rd6 {[%clk 0:00:32]} 32. Rxd6 {[%clk 0:01:06]}  Bxd6 {[%clk 0:00:33]} 33. Kc2 {[%clk 0:01:03]}  Kf8 {[%clk 0:00:33]} 34. c4 {[%clk 0:01:03]}  Bc5 {[%clk 0:00:33]} 35. Rb1 {[%clk 0:01:03]}  b6 {[%clk 0:00:33]} 36. Kd3 {[%clk 0:01:03]}  Ke7 {[%clk 0:00:33]} 37. g4 {[%clk 0:01:02]}  Kd6 {[%clk 0:00:33]} 38. h4 {[%clk 0:00:57]}  Nd7 {[%clk 0:00:33]} 39. f4 {[%clk 0:00:52]}  Kc6 {[%clk 0:00:32]} 40. g5 {[%clk 0:00:50]}  Bf2 {[%clk 0:00:30]} 41. h5 {[%clk 0:00:45]}  Bh4 {[%clk 0:00:27]} 42. Rg1 {[%clk 0:00:33]}  Bf2 {[%clk 0:00:24]} 43. f6 {[%clk 0:00:17]}  hxg5 {[%clk 0:00:19]} 44. Rxg5 {[%clk 0:00:15]}  gxf6 {[%clk 0:00:18]} 45. Rf5 {[%clk 0:00:14]}  Nc5+ {[%clk 0:00:17]} 46. Rxc5+ {[%clk 0:00:12]}  bxc5 {[%clk 0:00:08]} 47. f5 {[%clk 0:00:11]} 1-0


[Site "https://www.chess.com"]